fUSD/lending_fUSD_20250125
["ID","MTS","AMOUNT","RATE_DAILY","PERIOD"]
[350286193,1737768645951,-500.0,0.00021998,2]
[350286195,1737768645962,-500.0,0.00021998,2]
[350286196,1737768645973,-500.0,0.00021998,2]
[350286197,1737768645984,-500.0,0.00021998,2]
[350286198,1737768645994,-500.0,0.00021998,2]
[350286199,1737768646007,-500.0,0.00021998,2]
[350286200,1737768646018,-497.04518561,0.00021998,2]
[350286201,1737768646031,-500.0,0.00021998,2]
[350286202,1737768646043,-500.0,0.00021998,2]
[350286203,1737768646054,-500.0,0.00021998,2]
[350286204,1737768646066,-500.0,0.00021998,2]
[350286205,1737768646079,-434.34,0.00021998,2]
[350286206,1737768646091,-500.0,0.00021998,2]
[350286207,1737768646101,-500.0,0.00021998,2]
[350286208,1737768646112,-500.0,0.00021998,2]
[350286209,1737768646123,-500.0,0.00021998,2]
[350286210,1737768646136,-500.0,0.00021998,2]
[350286211,1737768646147,-357.88,0.00021998,2]
[350286212,1737768646160,-500.0,0.00021998,2]
[350286213,1737768646171,-500.0,0.00021998,2]
[350286214,1737768646181,-500.0,0.00021998,2]
[350286215,1737768646192,-540.46,0.00021998,2]
[350286216,1737768646203,-629.23,0.00021998,2]
[350286217,1737768646214,-500.0,0.00021998,2]
[350286218,1737768646224,-500.0,0.00021998,2]
[350286219,1737768646235,-500.0,0.00021998,2]
[350286220,1737768646245,-500.0,0.00021998,2]
[350286221,1737768646256,-500.0,0.00021998,2]
[350286222,1737768646266,-500.0,0.00021998,2]
[350286223,1737768646277,-500.0,0.00021998,2]
[350286224,1737768646289,-855.32,0.00021998,2]
[350286225,1737768646302,-500.0,0.00021998,2]
[350286226,1737768646314,-500.0,0.00021998,2]
[350286227,1737768646324,-500.0,0.00021998,2]
[350286228,1737768646335,-500.0,0.00021998,2]
[350286229,1737768646345,-500.0,0.00021998,2]
[350286230,1737768646355,-500.0,0.00021998,2]
[350286231,1737768646366,-500.0,0.00021998,2]
[350286232,1737768646377,-500.0,0.00021998,2]
[350286233,1737768646388,-1049.89,0.00021998,2]
[350286234,1737768646399,-500.0,0.00021998,2]
[350286236,1737768646411,-500.0,0.00021998,2]
[350286238,1737768646422,-500.0,0.00021998,2]
[350286240,1737768646433,-501.66090453,0.00021998,2]
[350286242,1737768646443,-726.86,0.00021998,2]
[350286244,1737768646453,-500.0,0.00021998,2]
[350286246,1737768646463,-500.0,0.00021998,2]
[350286248,1737768646473,-500.0,0.00021998,2]
[350286250,1737768646483,-500.0,0.00021998,2]
[350286252,1737768646493,-1412.01,0.00021998,2]
[350286254,1737768646504,-500.0,0.00021998,2]
[350286256,1737768646514,-500.0,0.00021998,2]
[350286258,1737768646525,-500.0,0.00021998,2]
[350286260,1737768646536,-898.55,0.00021998,2]
[350286262,1737768646549,-500.0,0.00021998,2]
[350286265,1737768646559,-1181.85,0.00021998,2]
[350286267,1737768646569,-1304.32,0.00021998,2]
[350286269,1737768646580,-500.0,0.00021998,2]
[350286271,1737768646590,-720.23,0.00021998,2]
[350286273,1737768646601,-500.0,0.00021998,2]
[350286275,1737768646611,-500.0,0.00021998,2]
[350286278,1737768646622,-500.0,0.00021998,2]
[350286281,1737768646634,-500.0,0.00021998,2]
[350286284,1737768646644,-500.0,0.00021998,2]
[350286287,1737768646655,-500.0,0.00021998,2]
[350286290,1737768646665,-500.0,0.00021998,2]
[350286293,1737768646675,-500.0,0.00021998,2]
[350286296,1737768646685,-500.0,0.00021998,2]
[350286299,1737768646696,-500.0,0.00021998,2]
[350286302,1737768646706,-500.0,0.00021998,2]
[350286305,1737768646716,-500.0,0.00021998,2]
[350286307,1737768646726,-1473.18,0.00021998,2]
[350286309,1737768646736,-739.64,0.00021998,2]
[350286311,1737768646747,-500.0,0.00021998,2]
[350286313,1737768646758,-500.0,0.00021998,2]
[350286316,1737768646768,-500.0,0.00021998,2]
[350286318,1737768646778,-500.0,0.00021998,2]
[350286320,1737768646788,-500.0,0.00021998,2]
[350286322,1737768646799,-500.0,0.00021998,2]
[350286324,1737768646809,-655.85,0.00021998,2]
[350286326,1737768646819,-500.0,0.00021998,2]
[350286328,1737768646830,-500.0,0.00021998,2]
[350286330,1737768646841,-500.0,0.00021998,2]
[350286331,1737768646851,-642.5,0.00021998,2]
[350286333,1737768646861,-500.0,0.00021998,2]
[350286335,1737768646872,-500.0,0.00021998,2]
[350286337,1737768646882,-500.0,0.00021998,2]
[350286339,1737768646893,-584.3,0.00021998,2]
[350286341,1737768646904,-500.0,0.00021998,2]
[350286343,1737768646915,-500.0,0.00021998,2]
[350286345,1737768646925,-500.0,0.00021998,2]
[350286347,1737768646936,-500.0,0.00021998,2]
[350286350,1737768646947,-500.0,0.00021998,2]
[350286352,1737768646958,-500.0,0.00021998,2]
[350286354,1737768646969,-506.28701953,0.00021998,2]
[350286356,1737768646979,-1000.0,0.00021998,2]
[350286358,1737768646988,-500.0,0.00021998,2]
[350286360,1737768646998,-500.0,0.00021998,2]
[350286362,1737768647009,-500.0,0.00021998,2]
[350286364,1737768647020,-553.46,0.00021998,2]
[350286365,1737768647031,-500.0,0.00021998,2]
[350286366,1737768647041,-500.0,0.00021998,2]
[350286367,1737768647052,-500.0,0.00021998,2]
[350286368,1737768647063,-500.0,0.00021998,2]
[350286369,1737768647075,-500.0,0.00021998,2]
[350286370,1737768647086,-708.86,0.00021998,2]
[350286371,1737768647098,-500.0,0.00021998,2]
[350286372,1737768647109,-500.0,0.00021998,2]
[350286373,1737768647121,-500.0,0.00021998,2]
[350286374,1737768647132,-500.0,0.00021998,2]
[350286375,1737768647143,-711.02,0.00021998,2]
[350286376,1737768647154,-500.0,0.00021998,2]
[350286377,1737768647164,-623.9,0.00021998,2]
[350286378,1737768647175,-500.0,0.00021998,2]
[350286379,1737768647186,-500.0,0.00021998,2]
[350286380,1737768647197,-500.0,0.00021998,2]
[350286381,1737768647207,-644.19,0.00021998,2]
[350286382,1737768647217,-500.0,0.00021998,2]
[350286383,1737768647228,-500.0,0.00021998,2]
[350286384,1737768647238,-500.0,0.00021998,2]
[350286385,1737768647249,-693.02,0.00021998,2]
[350286386,1737768647259,-502.09546631,0.00021998,2]
[350286387,1737768647269,-500.0,0.00021998,2]
[350286388,1737768647280,-500.0,0.00021998,2]
[350286389,1737768647290,-585.37,0.00021998,2]
[350286390,1737768647301,-500.0,0.00021998,2]
[350286391,1737768647312,-500.0,0.00021998,2]
[350286392,1737768647322,-500.0,0.00021998,2]
[350286393,1737768647332,-500.0,0.00021998,2]
[350286394,1737768647343,-500.0,0.00021998,2]
[350286395,1737768647353,-500.0,0.00021998,2]
[350286396,1737768647537,-500.0,0.00021998,2]
[350286397,1737768647555,-500.0,0.00021998,2]
[350286398,1737768647566,-500.0,0.00021998,2]
[350286399,1737768647575,-500.0,0.00021998,2]
[350286400,1737768647586,-500.0,0.00021998,2]
[350286401,1737768647597,-500.0,0.00021998,2]
[350286402,1737768647607,-500.0,0.00021998,2]
[350286403,1737768647616,-935.7,0.00021998,2]
[350286404,1737768647630,-500.0,0.00021998,2]
[350286405,1737768647641,-500.0,0.00021998,2]
[350286406,1737768647651,-500.0,0.00021998,2]
[350286407,1737768647660,-508.79300778,0.00021998,2]
[350286408,1737768647670,-500.0,0.00021998,2]
[350286409,1737768647680,-500.0,0.00021998,2]
[350286410,1737768647690,-500.0,0.00021998,2]
[350286411,1737768647701,-500.0,0.00021998,2]
[350286412,1737768647711,-500.0,0.00021998,2]
[350286413,1737768647722,-500.0,0.00021998,2]
[350286414,1737768647731,-500.0,0.00021998,2]
[350286415,1737768647741,-500.0,0.00021998,2]
[350286416,1737768647751,-500.0,0.00021998,2]
[350286417,1737768647760,-500.0,0.00021998,2]
[350286418,1737768647770,-952.12,0.00021998,2]
[350286419,1737768647780,-500.0,0.00021998,2]
[350286420,1737768647789,-500.0,0.00021998,2]
[350286421,1737768647799,-500.0,0.00021998,2]
[350286422,1737768647809,-500.0,0.00021998,2]
[350286423,1737768647818,-500.0,0.00021998,2]
[350286424,1737768647828,-500.0,0.00021998,2]
[350286425,1737768647837,-500.0,0.00021998,2]
[350286426,1737768647847,-500.0,0.00021998,2]
[350286427,1737768647856,-500.0,0.00021998,2]
[350286428,1737768647865,-500.0,0.00021998,2]
[350286429,1737768647875,-500.0,0.00021998,2]
[350286430,1737768647885,-500.0,0.00021998,2]
[350286431,1737768647894,-500.0,0.00021998,2]
[350286432,1737768647904,-520.38627697,0.00021998,2]
[350286433,1737768647914,-500.0,0.00021998,2]
[350286434,1737768647923,-512.32119947,0.00021998,2]
[350286435,1737768647933,-786.33,0.00021998,2]
[350286436,1737768647943,-501.56469815,0.00021998,2]
[350286437,1737768647954,-500.0,0.00021998,2]
[350286438,1737768647964,-500.0,0.00021998,2]
[350286439,1737768647973,-503.41226447,0.00021998,2]
[350286440,1737768647982,-500.0,0.00021998,2]
[350286441,1737768647991,-500.0,0.00021998,2]
[350286442,1737768648000,-863.7,0.00021999,2]
[350286443,1737768648009,-863.7,0.00021999,2]
[350286444,1737768648019,-863.7,0.00021999,2]
[350286445,1737768648028,-863.7,0.00021999,2]
[350286446,1737768648038,-863.7,0.00021999,2]
[350286447,1737768648048,-863.7,0.00021999,2]
[350286448,1737768648058,-863.7,0.00021999,2]
[350286449,1737768648068,-863.7,0.00021999,2]
[350286450,1737768648078,-863.7,0.00021999,2]
[350286451,1737768648088,-863.7,0.00021999,2]
[350286452,1737768648099,-2000.0,0.00021999,2]
[350286453,1737768648109,-2000.0,0.00021999,2]
[350286454,1737768648119,-2000.0,0.00021999,2]
[350286455,1737768648129,-296.40849385,0.00021999,7]
[350286456,1737768648142,-2000.0,0.00021999,2]
[350286457,1737768648154,-2000.0,0.00021999,2]
[350286458,1737768648165,-2000.0,0.00021999,2]
[350286459,1737768648175,-2000.0,0.00021999,2]
[350286460,1737768648184,-2000.0,0.00021999,2]
[350286461,1737768648194,-500.0,0.00021999,2]
[350286462,1737768648204,-30124.69835824,0.00021999,2]
[350286463,1737768648214,-1374.97,0.00021999,2]
[350286464,1737768648224,-1116.0,0.00022,2]
[350286465,1737768648233,-125835.40439345,0.00022,2]
[350286466,1737768648243,-7138702.87717192,0.00022,2]
[350286467,1737768648252,-6653096.72255407,0.00022,2]
[350286468,1737768648262,-5857669.87659001,0.00022,2]
[350286469,1737768648271,-3881890.86179507,0.00022,2]
[350286470,1737768648281,-7591.35710773,0.00022,2]
[350286471,1737768648291,-1240571.85144135,0.00022,2]
[350286472,1737768648300,-1015.39683725,0.00022,2]
[350286473,1737768648310,-1312487.58814942,0.00022,2]
[350286474,1737768648320,-900.0,0.00022,23]
[350286475,1737768648330,-253148.99807914,0.00022,2]
[350286476,1737768648450,-61396.76791421,0.00022,2]
[350286477,1737768648462,-2000.0,0.00022,2]
[350286478,1737768648473,-1920.55029064,0.00022,2]
[350286479,1737768648485,-752.655,0.00022,2]
[350286480,1737768648496,-342.27337491,0.00022,2]
[350286481,1737768648507,-9780.7,0.00022,2]
[350286482,1737768648518,-19329.35118772,0.00022,2]
[350286483,1737768648541,-1001.04,0.00017808,2]
[350286484,1737768648551,-2777.96,0.00022,2]
[350286485,1737768648562,-73481.21941889,0.00022,2]
[350286486,1737768648573,-1110.84010753,0.00022,2]
[350286487,1737768648700,-520.22411453,0.00016438,2]
[350286488,1737768648709,-409.01228942,0.00016438,2]
[350286489,1737768648727,-77.17444013,0.00016438,2]
[350286490,1737768648737,-278.80615024,0.0001726,2]
[350286491,1737768648749,-420.97384976,0.0001726,2]
[350286492,1737768648759,-699.78,0.00017397,2]
[350286493,1737768648769,-699.78,0.00017534,2]
[350286494,1737768648779,-699.78,0.00017671,2]
[350286495,1737768648788,-699.78,0.00017808,2]
[350286496,1737768648798,-1001.04,0.00017945,2]
[350286497,1737768648808,-699.78,0.00017945,2]
[350286498,1737768648817,-838.76944204,0.00018082,2]
[350286499,1737768648831,-162.27055796,0.00018082,2]
[350286500,1737768648841,-699.78,0.00018082,2]
[350286501,1737768648851,-1001.04,0.00018219,2]
[350286502,1737768648861,-699.78,0.00018219,2]
[350286503,1737768648870,-1001.04,0.00018356,2]
[350286504,1737768648880,-1001.04,0.00018493,2]
[350286505,1737768648891,-508.14440649,0.00021998,2]
[350286506,1737768648901,-3911.64650022,0.00022,2]
[350286507,1737768648913,-657.115,0.00022,2]
[350286508,1737768648925,-457.29218006,0.00022,2]
[350286509,1737768648937,-60841.04589192,0.00022,2]
[350286510,1737768648958,-699.78,0.00018356,2]
[350286511,1737768648967,-1001.04,0.0001863,2]
[350286512,1737768648977,-5631.11606158,0.00022,2]
[350286513,1737768649202,-1421.3417239,0.0001,2]
[350286514,1737768649212,-518.24485843,0.00016438,2]
[350286515,1737768649221,-500.0,0.00018164,2]
[350286516,1737768649231,-699.78,0.00018493,2]
[350286517,1737768649240,-699.78,0.0001863,2]
[350286518,1737768649249,-1001.04,0.00018767,2]
[350286519,1737768649259,-699.78,0.00018767,2]
[350286520,1737768649268,-1001.04,0.00018904,2]
[350286521,1737768649280,-699.78,0.00018904,2]
[350286522,1737768649290,-1001.04,0.00019041,2]
[350286523,1737768649299,-699.78,0.00019041,2]
[350286524,1737768649309,-1001.04,0.00019178,2]
[350286525,1737768649318,-699.78,0.00019178,2]
[350286526,1737768649328,-1001.04,0.00019315,2]
[350286527,1737768649338,-699.78,0.00019315,2]
[350286528,1737768649347,-1001.04,0.00019452,2]
[350286529,1737768649357,-699.78,0.00019452,2]
[350286530,1737768649367,-1001.04898198,0.00019589,2]
[350286531,1737768649377,-699.91430958,0.00019589,2]
[350286532,1737768649387,-505.40540494,0.00021998,2]
[350286533,1737768649397,-508.37097381,0.00021998,2]
[350286534,1737768649407,-500.0,0.00021998,2]
[350286535,1737768649416,-521.83051057,0.00021998,2]
[350286536,1737768649426,-514.04592151,0.00021998,2]
[350286537,1737768649435,-294592.18715278,0.00022,2]
[350286538,1737768649451,-2088.19074492,0.00022,2]
[350286539,1737768649463,-499.9999996,0.00022,2]
[350286540,1737768649559,-524.44802788,0.00016438,2]
[350286541,1737768649575,-366.47965279,0.00016438,2]
[350286542,1737768649591,-143.04759015,0.00016438,2]
[350286543,1737768649601,-257.40454259,0.00020356,2]
[350286544,1737768649612,-242.59545741,0.00020356,2]
[350286545,1737768649622,-500.0,0.00021998,2]
[350286546,1737768649632,-519.98014282,0.00021998,2]
[350286547,1737768649642,-388.36797194,0.00022,2]
[350286548,1737768649658,-1333.98286157,0.00022,2]
[350286549,1737768649671,-2472.03999985,0.00022,2]
[350286552,1737768997469,1013.73224279,0.00016438,30]
[350286562,1737769450779,864.01,0.00022004,120]
[350286563,1737769475553,864.01,0.00022004,120]
[350286564,1737769492523,864.01,0.00022004,120]
[350286567,1737769507240,864.01,0.00022004,120]
[350286569,1737769522959,864.01,0.00022004,120]
[350286571,1737769540128,-157.44,0.00010137,2]
[350286572,1737769540148,-639.63,0.00013426,2]
[350286573,1737769540169,-202.12556857,0.0001349,2]
[350286574,1737769540189,-368.92149279,0.0001349,2]
[350286575,1737769540212,-188.56,0.00013554,2]
[350286576,1737769540232,-1.21901336,0.00013554,2]
[350286577,1737769547716,864.01,0.00022004,120]
[350286578,1737769575405,164.63,0.00016658,30]
[350286579,1737769589757,864.01,0.00022,120]
[350286580,1737769606700,864.01,0.00022,120]
[350286581,1737769631084,-305.74942973,0.0001359,2]
[350286582,1737769637615,864.01,0.00022,120]
[350286583,1737769653804,864.01,0.00022,120]
[350286593,1737769746077,-1194.25057027,0.0001359,2]
[350286594,1737769746099,-250.0,0.00013648,2]
[350286595,1737769746122,-150.0,0.00013671,2]
[350286596,1737769746147,-970.11405773,0.00013804,2]
[350286597,1737769754080,-2467.49594227,0.00013804,2]
[350286598,1737769754101,-159.82888373,0.00013875,2]
[350286599,1737769755122,-140.17111627,0.00013875,2]
[350286600,1737769755144,-16.76497633,0.00013875,2]
[350286601,1737769757172,-283.23502367,0.00013875,2]
[350286602,1737769757193,-336.89146373,0.00013875,2]
[350286603,1737769774093,-186.24,0.00012329,2]
[350286604,1737769774115,-678.27,0.00012386,2]
[350286605,1737769774138,-32.97582708,0.00013876,2]
[350286625,1737769832148,-505.31124624,0.00013876,2]
[350286626,1737769832168,-1876.37292668,0.00013876,2]
[350286627,1737769832178,-200.0,0.00013924,2]
[350286628,1737769832188,-177.84,0.0001396,2]
[350286629,1737769832202,-4693.87,0.00013996,2]
[350286630,1737769832211,-36.92953523,0.00014069,2]
[350286631,1737769832223,-2999.46047874,0.00014069,2]
[350286632,1737769832233,-150.0,0.00014069,2]
[350286633,1737769832243,-4504.35,0.00014095,2]
[350286634,1737769832253,-1000.0,0.00014097,2]
[350286635,1737769832263,-7583.9,0.00014157,2]
[350286636,1737769832272,-996.62,0.00014179,2]
[350286637,1737769832281,-254.87,0.00014189,2]
[350286638,1737769832291,-250.0,0.00014251,2]
[350286639,1737769832300,-17418.98009584,0.00014302,2]
[350286640,1737769832310,-13847.65578706,0.00014303,2]
[350286641,1737769832321,-646.9888024,0.00014303,2]
[350286642,1737769832332,-646.63726011,0.00014303,2]
[350286643,1737769832344,-1677.34175643,0.00014303,2]
[350286644,1737769832363,-7081.376394,0.00014303,2]
[350286645,1737769832374,-293.95,0.00014322,2]
[350286646,1737769832383,-1058.0,0.00014362,2]
[350286647,1737769832392,-578.02,0.00014386,2]
[350286648,1737769832402,-162.03,0.00014444,2]
[350286649,1737769832411,-500.0,0.00014444,2]
[350286650,1737769832421,-151.66,0.00014543,2]
[350286651,1737769832430,-678.27,0.0001465,2]
[350286652,1737769832442,-1641.03,0.00015055,2]
[350286653,1737769832452,-1058.0,0.00015118,2]
[350286654,1737769832461,-420.0,0.00015203,2]
[350286655,1737769832471,-9.93017661,0.0001527,2]
[350286656,1737769832486,-141.72982339,0.0001527,2]
[350286657,1737769832495,-778.13,0.00015484,2]
[350286658,1737769832505,-289.63617661,0.00015763,2]
[350286659,1737769832517,-988.54302942,0.00015763,2]
[350286660,1737769832528,-6497.1886532,0.00015763,2]
[350286661,1737769832539,-3700.63214077,0.00015763,2]
[350286662,1737769832549,-1000.0,0.00015859,2]
[350286663,1737769832558,-1058.0,0.00015914,2]
[350286664,1737769832568,-151.66,0.00015997,2]
[350286665,1737769832577,-281.0,0.00016164,2]
[350286666,1737769832586,-6252.02289783,0.00016338,2]
[350286667,1737769832598,-4069.21884133,0.00016338,2]
[350286668,1737769832608,-250.0,0.00016366,2]
[350286670,1737769832618,-500.0,0.00016437,2]
[350286672,1737769832628,-500.0,0.00016437,2]
[350286674,1737769832637,-401.54628071,0.00016437,2]
[350286676,1737769832646,-519.63501782,0.00016438,2]
[350286678,1737769832655,-500.0,0.00016438,2]
[350286680,1737769832664,-512.65577238,0.00016438,2]
[350286682,1737769832673,-502.11983574,0.00016438,2]
[350286684,1737769832683,-503.36820702,0.00016438,2]
[350286686,1737769832692,-500.0,0.00016438,2]
[350286688,1737769832702,-500.0,0.00016438,2]
[350286690,1737769832711,-512.25839942,0.00016438,2]
[350286692,1737769832726,-517.35035513,0.00016438,2]
[350286694,1737769832736,-500.0,0.00016438,2]
[350286696,1737769832749,-512.56064291,0.00016438,2]
[350286698,1737769832760,-509.46530201,0.00016438,2]
[350286700,1737769832769,-507.03421115,0.00016438,2]
[350286702,1737769832778,-510.4994838,0.00016438,2]
[350286704,1737769832788,-505.24977137,0.00016438,2]
[350286706,1737769832797,-515.6676117,0.00016438,2]
[350286708,1737769832806,-506.24870958,0.00016438,2]
[350286709,1737769832815,-500.0,0.00016438,2]
[350286712,1737769832824,-506.08049464,0.00016438,2]
[350286715,1737769832834,-500.0,0.00016438,2]
[350286718,1737769832843,-504.66619246,0.00016438,2]
[350286721,1737769832852,-504.34491893,0.00016438,2]
[350286723,1737769832861,-500.0,0.00016438,2]
[350286727,1737769832870,-508.88376882,0.00016438,2]
[350286730,1737769832880,-500.0,0.00016438,2]
[350286733,1737769832889,-395.14950418,0.00016438,2]
[350286809,1737769838011,-112.52493957,0.00016438,2]
[350286810,1737769838021,-514.7380842,0.00016438,2]
[350286811,1737769838031,-514.93648259,0.00016438,2]
[350286812,1737769838040,-505.56746224,0.00016438,2]
[350286813,1737769838049,-505.41102159,0.00016438,2]
[350286814,1737769838059,-502.06652214,0.00016438,2]
[350286815,1737769838069,-500.0,0.00016438,2]
[350286816,1737769838078,-503.82252324,0.00016438,2]
[350286817,1737769838088,-507.53623076,0.00016438,2]
[350286818,1737769838097,-500.0,0.00016438,2]
[350286819,1737769838107,-125.00388474,0.00016438,2]
[350286820,1737769838128,-379.78919156,0.00016438,2]
[350286821,1737769838138,-508.82841558,0.00016438,2]
[350286822,1737769838147,-500.0,0.00016438,2]
[350286823,1737769838156,-501.95156557,0.00016438,2]
[350286824,1737769838166,-506.90464247,0.00016438,2]
[350286825,1737769838175,-506.44505834,0.00016438,2]
[350286826,1737769838184,-509.85491471,0.00016438,2]
[350286827,1737769838194,-517.40552071,0.00016438,2]
[350286828,1737769838204,-500.0,0.00016438,2]
[350286829,1737769838214,-508.5053041,0.00016438,2]
[350286830,1737769838223,-500.0,0.00016438,2]
[350286831,1737769838232,-515.65697317,0.00016438,2]
[350286832,1737769838242,-516.69782673,0.00016438,2]
[350286833,1737769838251,-516.93109937,0.00016438,2]
[350286834,1737769838261,-520.15094181,0.00016438,2]
[350286835,1737769838271,-501.13667291,0.00016438,2]
[350286836,1737769838280,-625.43573053,0.00016438,2]
[350286837,1737769838289,-500.0,0.00016438,2]
[350286838,1737769838298,-500.0,0.00016438,2]
[350286839,1737769838308,-505.67797929,0.00016438,7]
[350286840,1737769838317,-521.99499682,0.00016438,2]
[350286841,1737769838331,-511.37866042,0.00016438,2]
[350286842,1737769838340,-500.0,0.00016438,2]
[350286843,1737769838350,-523.46417163,0.00016438,2]
[350286844,1737769838359,-522.4686172,0.00016438,2]
[350286845,1737769838370,-516.89846062,0.00016438,2]
[350286847,1737769838380,-521.15003434,0.00016438,2]
[350286849,1737769838389,-523.13613299,0.00016438,2]
[350286851,1737769838399,-75.55905496,0.00016438,2]
[350286853,1737769838412,-440.8803206,0.00016438,2]
[350286856,1737769838421,-500.0,0.00016438,2]
[350286857,1737769838431,-529.17597066,0.00016438,2]
[350286859,1737769838440,-629.89347117,0.00016438,2]
[350286862,1737769838451,-521.6649725,0.00016438,2]
[350286864,1737769838461,-573.21659028,0.00016438,2]
[350286866,1737769838471,-500.0,0.00016438,2]
[350286867,1737769838481,-500.0,0.00016438,2]
[350286870,1737769838490,-319.61277635,0.00016438,2]
[350286871,1737769838500,-500.0,0.00016438,2]
[350286873,1737769838509,-500.0,0.00016438,2]
[350286876,1737769838518,-500.0,0.00016438,2]
[350286877,1737769838527,-530.84931526,0.00016438,2]
[350286880,1737769838537,-500.0,0.00016438,2]
[350286881,1737769838546,-517.69754777,0.00016438,2]
[350286884,1737769838556,-500.0,0.00016438,2]
[350286886,1737769838565,-516.09919624,0.00016438,2]
[350286888,1737769838574,-500.0,0.00016438,2]
[350286889,1737769838584,-500.0,0.00016438,2]
[350286891,1737769838593,-516.00712498,0.00016438,2]
[350286893,1737769838603,-500.0,0.00016438,2]
[350286895,1737769838612,-500.0,0.00016438,2]
[350286897,1737769838622,-521.87290725,0.00016438,2]
[350286899,1737769838631,-500.0,0.00016438,2]
[350286901,1737769838640,-513.68126161,0.00016438,2]
[350286903,1737769838650,-399.33881091,0.00016438,2]
[350286905,1737769838659,-514.50092276,0.00016438,2]
[350286907,1737769838668,-510.76569759,0.00016438,2]
[350286909,1737769838678,-505.53532867,0.00016438,2]
[350286911,1737769838688,-500.0,0.00016438,2]
[350286913,1737769838699,-500.0,0.00016438,2]
[350286915,1737769838708,-517.21448609,0.00016438,2]
[350286917,1737769838718,-500.0,0.00016438,2]
[350286919,1737769838727,-512.37941089,0.00016438,2]
[350286921,1737769838737,-500.0,0.00016438,2]
[350286923,1737769838746,-506.11048238,0.00016438,2]
[350286925,1737769838755,-522.13104851,0.00016438,2]
[350286927,1737769838765,-500.0,0.00016438,2]
[350286928,1737769838774,-500.0,0.00016438,2]
[350286930,1737769838783,-505.44483593,0.00016438,2]
[350286932,1737769838793,-519.50989606,0.00016438,2]
[350286935,1737769838802,-510.67325448,0.00016438,2]
[350286936,1737769838811,-511.94740716,0.00016438,2]
[350286938,1737769838821,-509.2927821,0.00016438,2]
[350286940,1737769838829,-503.00681435,0.00016438,2]
[350286956,1737769839004,-500.0,0.00016438,2]
[350286959,1737769839014,-500.0,0.00016438,2]
[350286961,1737769839023,-514.22355661,0.00016438,2]
[350286963,1737769839032,-553.45679531,0.00016438,2]
[350286964,1737769839042,-500.0,0.00016438,2]
[350286967,1737769839051,-507.69655969,0.00016438,2]
[350286968,1737769839061,-524.06955131,0.00016438,2]
[350286969,1737769839070,-500.0,0.00016438,2]
[350286970,1737769839080,-536.08133364,0.00016438,2]
[350286971,1737769839090,-516.42746786,0.00016438,2]
[350286972,1737769839099,-500.0,0.00016438,2]
[350286973,1737769839108,-649.20417949,0.00016438,2]
[350286974,1737769839118,-521.06611641,0.00016438,2]
[350286975,1737769839127,-500.0,0.00016438,2]
[350286976,1737769839138,-512.32119947,0.00016438,2]
[350286977,1737769839148,-507.98690389,0.00016438,2]
[350286978,1737769839158,-500.0,0.00016438,2]
[350286979,1737769839167,-500.0,0.00016438,2]
[350286980,1737769839176,-500.01290665,0.00016438,2]
[350286981,1737769839186,-500.0,0.00016438,2]
[350286982,1737769839195,-167.74174434,0.00016438,2]
[350286983,1737769839204,-502.03435148,0.00016438,2]
[350286984,1737769839214,-519.83503273,0.00016438,2]
[350286985,1737769839223,-502.45230505,0.00016438,2]
[350286986,1737769839232,-511.39910511,0.00016438,2]